fUST/lending_fUST_20260408
["ID","MTS","AMOUNT","RATE_DAILY","PERIOD"]
[419978468,1775581839999,-500.0,0.00021188,2]
[419978470,1775581840009,-1454.77458151,0.00021188,2]
[419978472,1775581840018,-1454.77458151,0.00021188,2]
[419978474,1775581840027,-1454.77458151,0.00021188,2]
[419978476,1775581840037,-500.0,0.00021188,2]
[419978478,1775581840046,-1454.77458151,0.00021188,2]
[419978480,1775581840056,-1454.77458151,0.00021188,2]
[419978482,1775581840065,-1454.77458151,0.00021188,2]
[419978484,1775581840075,-500.0,0.00021188,2]
[419978486,1775581840085,-1454.77458151,0.00021188,2]
[419978490,1775581840095,-500.0,0.00021188,2]
[419978493,1775581840105,-1454.77458151,0.00021188,2]
[419978496,1775581840116,-500.0,0.00021188,2]
[419978499,1775581840127,-1454.77458151,0.00021188,2]
[419978502,1775581840139,-1454.77458151,0.00021188,2]
[419978504,1775581840150,-1454.77458151,0.00021188,2]
[419978506,1775581840161,-1454.77458151,0.00021188,2]
[419978509,1775581840172,-1454.77458151,0.00021188,2]
[419978511,1775581840183,-1454.77458151,0.00021188,2]
[419978513,1775581840195,-1454.77458151,0.00021188,2]
[419978514,1775581840208,-1454.77458151,0.00021188,2]
[419978516,1775581840219,-3000.0,0.0002119,2]
[419978518,1775581840229,-3000.0,0.000212,2]
[419978521,1775581840240,-500.0,0.000212,2]
[419978524,1775581840250,-500.0,0.000212,2]
[419978526,1775581840260,-500.0,0.000212,2]
[419978528,1775581840269,-500.0,0.000212,2]
[419978530,1775581840280,-500.0,0.000212,2]
[419978532,1775581840289,-503.63568216,0.000212,2]
[419978534,1775581840299,-500.0,0.000212,2]
[419978536,1775581840310,-158.62348259,0.000212,2]
[419978538,1775581840320,-248.90448356,0.000212,2]
[419978540,1775581840330,-3000.0,0.0002121,2]
[419978542,1775581840340,-3000.0,0.0002122,2]
[419978544,1775581840349,-171.23,0.0002122,2]
[419978546,1775581840359,-2019.70803971,0.00021229,2]
[419978548,1775581840371,-3000.0,0.0002123,2]
[419978550,1775581840382,-3000.0,0.0002124,2]
[419978552,1775581840392,-3000.0,0.0002125,2]
[419978554,1775581840401,-3000.0,0.0002126,2]
[419978556,1775581840411,-3000.0,0.0002127,2]
[419978558,1775581840421,-3000.0,0.0002128,2]
[419978560,1775581840431,-151.0,0.0002128,2]
[419978562,1775581840441,-3000.0,0.0002129,2]
[419978564,1775581840452,-3000.0,0.000213,2]
[419978566,1775581840463,-200.0,0.000213,2]
[419978568,1775581840473,-3000.0,0.0002131,2]
[419978570,1775581840484,-3000.0,0.0002132,2]
[419978572,1775581840493,-3000.0,0.0002133,2]
[419978574,1775581840504,-3000.0,0.0002134,2]
[419978576,1775581840514,-3000.0,0.0002135,2]
[419978578,1775581840524,-3000.0,0.0002136,2]
[419978580,1775581840534,-3000.0,0.0002137,2]
[419978582,1775581840544,-151.0,0.0002137,2]
[419978584,1775581840551,-151.0,0.0002137,2]
[419978585,1775581840558,-151.0,0.0002137,2]
[419978587,1775581840566,-151.0,0.0002137,2]
[419978589,1775581840575,-3000.0,0.0002138,2]
[419978591,1775581840584,-5618.084227,0.0002139,2]
[419978593,1775581840591,-1000.0,0.00021748,2]
[419978595,1775581840601,-503.30561248,0.00021748,2]
[419978597,1775581840611,-1002.57896594,0.00021748,2]
[419978599,1775581840622,-1000.0,0.00021748,2]
[419978601,1775581840632,-1000.0,0.00021748,2]
[419978603,1775581840643,-1027.50133,0.00021918,2]
[419978605,1775581840653,-1027.50133,0.00021918,2]
[419978607,1775581840663,-1027.50133,0.00021918,2]
[419978609,1775581840674,-1027.50133,0.00021918,2]
[419978611,1775581840683,-576.46580869,0.0002196,10]
[419978613,1775581840693,-166.80027339,0.00022098,60]
[419978616,1775581840704,-650.950018,0.00022224,2]
[419978618,1775581840714,-650.950018,0.00022224,2]
[419978620,1775581840724,-650.950018,0.00022224,2]
[419978622,1775581840734,-650.950018,0.00022224,2]
[419978624,1775581840745,-506.36458722,0.00022296,2]
[419978626,1775581840756,-1500.0,0.00022296,2]
[419978628,1775581840766,-1500.0,0.00022296,2]
[419978630,1775581840776,-386.46,0.00022477,3]
[419978632,1775581840786,-1238.80703656,0.00022641,2]
[419978634,1775581840797,-2019.70803971,0.00022832,2]
[419978636,1775581840807,-2000.0,0.00022844,2]
[419978638,1775581840818,-2000.0,0.00022844,2]
[419978640,1775581840828,-509.0,0.00022858,10]
[419978642,1775581840838,-270.83333333,0.00023,2]
[419978644,1775581840849,-2500.0,0.00023392,2]
[419978646,1775581840859,-2500.0,0.00023392,2]
[419978648,1775581840869,-192.41,0.00023857,3]
[419978650,1775581840879,-3000.0,0.0002394,2]
[419978652,1775581840889,-3000.0,0.0002394,2]
[419978654,1775581840900,-171.23,0.0002396,3]
[419978656,1775581840910,-1238.80703656,0.00024193,2]
[419978659,1775581840921,-2019.70803971,0.00024435,2]
[419978661,1775581840931,-3500.0,0.00024488,2]
[419978663,1775581840942,-1000.0,0.00024488,2]
[419978665,1775581840951,-500.0,0.00024614,2]
[419978667,1775581840961,-500.0,0.00024614,2]
[419978669,1775581840971,-200.0,0.00024658,2]
[419978671,1775581840981,-200.0,0.00024658,2]
[419978673,1775581840991,-200.0,0.00024658,2]
[419978675,1775581841000,-200.0,0.00024658,2]
[419978677,1775581841010,-200.0,0.00024658,2]
[419978679,1775581841021,-200.0,0.00024658,2]
[419978681,1775581841031,-200.0,0.00024658,2]
[419978683,1775581841041,-200.0,0.00024658,2]
[419978685,1775581841051,-200.0,0.00024658,2]
[419978687,1775581841061,-200.0,0.00024658,2]
[419978689,1775581841070,-200.0,0.00024658,2]
[419978691,1775581841080,-200.0,0.00024658,2]
[419978693,1775581841089,-1410.84502693,0.00024726,2]
[419978695,1775581841099,-1457.77017219,0.00024726,2]
[419978697,1775581841108,-501.43065135,0.00024775,2]
[419978699,1775581841119,-12250.12038675,0.000248,2]
[419978701,1775581841129,-900.000001,0.00025,2]
[419978703,1775581841138,-903.93,0.00025092,2]
[419978705,1775581841149,-437.26602679,0.00025162,2]
[419978707,1775581841158,-1000.0,0.00025162,2]
[419978709,1775581841168,-160.0,0.00025507,14]
[419978711,1775581841177,-382.389638,0.00025507,14]
[419978713,1775581841188,-604.779276,0.00025507,14]
[419978715,1775581841198,-160.0,0.00025507,14]
[419978717,1775581841207,-390.570264,0.00025507,14]
[419978719,1775581841217,-621.140528,0.00025507,14]
[419978721,1775581841227,-1500.0,0.0002571,2]
[419978723,1775581841236,-1238.80703656,0.00025745,2]
[419978725,1775581841246,-517.4010755,0.00025858,30]
[419978727,1775581841256,-275.5122941,0.00025858,30]
[419978729,1775581841265,-500.0,0.00025858,30]
[419978731,1775581841275,-500.0,0.00025858,30]
[419978733,1775581841285,-500.0,0.00025858,30]
[419978735,1775581841294,-500.0,0.00025858,30]
[419978737,1775581841304,-500.0,0.00025858,30]
[419978739,1775581841315,-500.0,0.00025858,30]
[419978741,1775581841324,-500.0,0.00025858,30]
[419978743,1775581841334,-500.0,0.00025858,30]
[419978745,1775581841344,-500.0,0.00025858,30]
[419978747,1775581841353,-822.1343996,0.00025858,30]
[419978749,1775581841363,-500.0,0.00025973,2]
[419978751,1775581841373,-500.0,0.00025973,2]
[419978753,1775581841383,-650.950018,0.00025973,2]
[419978755,1775581841392,-650.950018,0.00025973,2]
[419978757,1775581841401,-650.950018,0.00025973,2]
[419978759,1775581841411,-650.950018,0.00025973,2]
[419978761,1775581841421,-151.0,0.00025973,2]
[419978763,1775581841431,-151.0,0.00025973,2]
[419978765,1775581841441,-151.0,0.00025973,2]
[419978767,1775581841450,-1027.50133,0.00025973,2]
[419978769,1775581841460,-225.563541,0.00025973,2]
[419978771,1775581841470,-1027.50133,0.00025973,2]
[419978773,1775581841480,-1027.50133,0.00025973,2]
[419978775,1775581841490,-1027.50133,0.00025973,2]
[419978777,1775581841500,-1957.856,0.00025987,2]
[419978779,1775581841510,-197.75728126,0.00025987,2]
[419978781,1775581841520,-537.6845,0.00025987,2]
[419978783,1775581841530,-537.6845,0.00025987,2]
[419978785,1775581841541,-2150.738,0.00025987,2]
[419978787,1775581841550,-200.0,0.00025987,2]
[419978790,1775581841560,-200.0,0.00025987,2]
[419978792,1775581841570,-200.0,0.00025987,2]
[419978793,1775581841580,-200.0,0.00025987,2]
[419978796,1775581841591,-4184.3413763,0.00026027,6]
[419978798,1775581841600,-2019.70803971,0.00026039,2]
[419978801,1775581841610,-2030.296672,0.00026042,2]
[419978804,1775581841620,-557.5788265,0.00026042,2]
[419978806,1775581841630,-2105.41764886,0.00026097,2]
[419978808,1775581841640,-578.20924308,0.00026097,2]
[419978810,1775581841650,-2220.86797061,0.00026152,2]
[419978812,1775581841659,-599.60298507,0.00026152,2]
[419978814,1775581841670,-4056.3716,0.000262,3]
[419978816,1775581841680,-621.78829552,0.00026207,2]
[419978818,1775581841690,-551.72,0.00026207,2]
[419978820,1775581841700,-551.72,0.00026207,2]
[419978822,1775581841710,-551.72,0.00026207,2]
[419978858,1775581842032,-551.72,0.00026207,2]
[419978861,1775581842055,-551.72,0.00026207,2]
[419978863,1775581842065,-725.73,0.00026207,2]
[419978865,1775581842074,-1421.636,0.0002621,2]
[419978867,1775581842084,-644.0,0.0002621,2]
[419978869,1775581842094,-2205.0,0.0002621,2]
[419978871,1775581842104,-741.197,0.0002621,2]
[419978873,1775581842114,-184.0,0.0002621,2]
[419978875,1775581842124,-440.0,0.0002621,2]
[419978876,1775581842132,-2000.0,0.00026258,2]
[419978878,1775581842142,-644.79446246,0.00026262,2]
[419978880,1775581842152,-668.65185757,0.00026317,2]
[419978882,1775581842161,-356.39398776,0.00026372,2]
[419978884,1775581842171,-155.7074763,0.00026535,2]
[419978886,1775581842181,-1580.7454102,0.00026535,2]
[419978888,1775581842190,-192.41,0.00026596,6]
[419978890,1775581842201,-1374.350449,0.00026621,2]
[419978892,1775581842210,-171.23,0.00026699,6]
[419978894,1775581842220,-2500.0,0.00026806,2]
[419978897,1775581842231,-10247.74,0.00027,2]
[419978899,1775581842241,-200.0,0.00027,2]
[419978901,1775581842251,-200.0,0.00027,2]
[419978903,1775581842261,-200.0,0.00027,2]
[419978905,1775581842271,-200.0,0.00027,2]
[419978907,1775581842280,-650.950018,0.00027,2]
[419978909,1775581842291,-650.950018,0.00027,2]
[419978911,1775581842301,-650.950018,0.00027,2]
[419978913,1775581842311,-650.950018,0.00027,2]
[419978915,1775581842321,-151.0,0.00027,2]
[419978917,1775581842331,-151.0,0.00027,2]
[419978919,1775581842341,-151.0,0.00027,2]
[419978921,1775581842352,-1027.50133,0.00027,2]
[419978923,1775581842362,-1027.50133,0.00027,2]
[419978925,1775581842373,-1027.50133,0.00027,2]
[419978927,1775581842383,-1027.50133,0.00027,2]
[419978929,1775581842392,-200.0,0.00027071,3]
[419978931,1775581842402,-647.0,0.00027071,3]
[419978933,1775581842412,-647.0,0.00027071,3]
[419978935,1775581842422,-153.0,0.00027071,3]
[419978937,1775581842431,-647.0,0.00027071,3]
[419978939,1775581842442,-300.0,0.00027071,3]
[419978941,1775581842451,-304.29493949,0.00027071,3]
[419978943,1775581842461,-731.66795639,0.000271,82]
[419978945,1775581842471,-2491.96002209,0.000271,82]
[419978947,1775581842480,-1805.59307914,0.000271,82]
[419978949,1775581842491,-790.0,0.000271,2]
[419978951,1775581842501,-369.218,0.00027118,15]
[419978953,1775581842510,-1238.80703656,0.00027297,2]
[419978955,1775581842520,-789.41404785,0.00027354,2]
[419978957,1775581842529,-500.0,0.00027373,2]
[419978959,1775581842539,-648.63421265,0.00027373,2]
[419978961,1775581842548,-500.0,0.00027373,2]
[419978963,1775581842557,-500.0,0.00027373,2]
[419978965,1775581842567,-1035.21330081,0.00027373,2]
[419978967,1775581842576,-1342.3721527,0.00027396,2]
[419978969,1775581842586,-1342.37215269,0.00027396,2]
[419978971,1775581842596,-1342.37215269,0.00027396,2]
[419978973,1775581842605,-1342.37215269,0.00027396,2]
[419978975,1775581842614,-500.0,0.00027397,2]
[419978977,1775581842625,-500.0,0.00027397,2]
[419978979,1775581842634,-500.0,0.00027397,2]
[419978981,1775581842644,-500.0,0.00027397,2]
[419978983,1775581842653,-500.0,0.00027397,2]
[419978984,1775581842663,-500.0,0.00027397,2]
[419978986,1775581842672,-500.0,0.00027397,2]
[419978988,1775581842682,-500.0,0.00027397,2]
[419978990,1775581842692,-500.0,0.00027397,2]
[419978992,1775581842703,-309.50328004,0.00027397,2]
[419978995,1775581842713,-500.0,0.00027397,2]
[419978997,1775581842723,-526.09868454,0.00027397,2]
[419979000,1775581842733,-500.0,0.00027397,2]
[419979003,1775581842743,-361.73731811,0.00027397,2]
[419979006,1775581842753,-500.0,0.00027397,2]
[419979008,1775581842763,-500.0,0.00027397,2]
[419979010,1775581842772,-500.0,0.00027397,2]
[419979012,1775581842782,-500.0,0.00027397,2]
[419979014,1775581842791,-694.39,0.00027397,2]
[419979016,1775581842801,-500.0,0.00027397,2]
[419979018,1775581842810,-500.0,0.00027397,2]
[419979020,1775581842821,-500.0,0.00027397,2]
[419979022,1775581842831,-500.0,0.00027397,2]
[419979024,1775581842841,-500.0,0.00027397,2]
[419979026,1775581842851,-523.74,0.00027397,2]
[419979028,1775581842860,-500.0,0.00027397,2]
[419979030,1775581842870,-500.0,0.00027397,2]
[419979033,1775581842880,-1535.84,0.00027397,2]
[419979036,1775581842890,-500.0,0.00027397,2]
[419979038,1775581842899,-612.42475672,0.00027397,2]
[419979040,1775581842909,-1508.38,0.00027397,2]
[419979042,1775581842917,-4009.96,0.00027397,2]
[419979044,1775581842927,-500.0,0.00027397,2]
[419979046,1775581842936,-565.35195332,0.00027397,2]
[419979048,1775581842946,-500.0,0.00027397,2]
[419979050,1775581842955,-500.0,0.00027397,2]
[419979052,1775581842965,-500.0,0.00027397,2]
[419979054,1775581842975,-1131.21,0.00027397,2]
[419979056,1775581842985,-500.0,0.00027397,2]
[419979058,1775581842994,-600.83,0.00027397,2]
[419979060,1775581843004,-500.0,0.00027397,2]
[419979062,1775581843015,-200.77706987,0.00027397,2]
[419979065,1775581843026,-725.56,0.00027397,2]
[419979067,1775581843037,-593.69,0.00027397,2]
[419979069,1775581843047,-617.07,0.00027397,2]
[419979071,1775581843058,-500.0,0.00027397,2]
[419979073,1775581843068,-500.0,0.00027397,2]
[419979075,1775581843079,-1936.11,0.00027397,2]
[419979077,1775581843089,-897.39,0.00027397,2]
[419979079,1775581843099,-500.0,0.00027397,2]
[419979081,1775581843109,-500.0,0.00027397,2]
[419979083,1775581843120,-500.0,0.00027397,2]
[419979085,1775581843130,-500.0,0.00027397,2]
[419979087,1775581843140,-500.0,0.00027397,2]
[419979089,1775581843150,-500.0,0.00027397,2]
[419979091,1775581843159,-500.0,0.00027397,2]
[419979093,1775581843170,-500.0,0.00027397,2]
[419979095,1775581843180,-212.39381569,0.00027397,2]
[419979097,1775581843189,-500.0,0.00027397,2]
[419979099,1775581843199,-272.10252338,0.00027397,2]
[419979101,1775581843209,-671.03,0.00027397,2]
[419979103,1775581843218,-612.06,0.00027397,2]
[419979105,1775581843230,-500.0,0.00027397,2]
[419979107,1775581843240,-536.09769388,0.00027397,2]
[419979109,1775581843250,-500.0,0.00027397,2]
[419979111,1775581843260,-500.0,0.00027397,2]
[419979113,1775581843270,-500.0,0.00027397,2]
[419979115,1775581843280,-718.3,0.00027397,2]
[419979117,1775581843291,-500.0,0.00027397,2]
[419979119,1775581843301,-500.0,0.00027397,2]
[419979121,1775581843311,-500.0,0.00027397,2]
[419979123,1775581843321,-500.0,0.00027397,2]
[419979125,1775581843331,-500.0,0.00027397,2]
[419979127,1775581843341,-500.0,0.00027397,2]
[419979129,1775581843352,-500.0,0.00027397,2]
[419979131,1775581843362,-500.0,0.00027397,2]
[419979133,1775581843373,-637.03635116,0.00027397,2]
[419979135,1775581843383,-500.0,0.00027397,2]
[419979137,1775581843393,-500.0,0.00027397,2]
[419979139,1775581843404,-1222.39,0.00027397,2]
[419979141,1775581843414,-572.72851865,0.00027397,2]
[419979143,1775581843425,-500.0,0.00027397,2]
[419979145,1775581843434,-1239.46,0.00027397,2]
[419979147,1775581843444,-396.31994267,0.00027397,2]
[419979149,1775581843453,-681.85,0.00027397,2]
[419979151,1775581843464,-500.0,0.00027397,2]
[419979153,1775581843474,-500.0,0.00027397,2]
[419979155,1775581843485,-500.0,0.00027397,2]
[419979157,1775581843495,-500.0,0.00027397,2]
[419979159,1775581843505,-500.0,0.00027397,2]
[419979161,1775581843514,-500.0,0.00027397,2]
[419979163,1775581843524,-1329.65,0.00027397,2]
[419979165,1775581843534,-500.0,0.00027397,2]
[419979167,1775581843544,-966.98,0.00027397,2]
[419979169,1775581843554,-500.0,0.00027397,2]
[419979171,1775581843564,-500.0,0.00027397,2]
[419979173,1775581843574,-500.0,0.00027397,2]
[419979175,1775581843584,-576.66,0.00027397,2]
[419979177,1775581843593,-500.0,0.00027397,2]
[419979179,1775581843604,-500.0,0.00027397,2]
[419979181,1775581843614,-500.0,0.00027397,2]
[419979183,1775581843626,-500.0,0.00027397,2]
[419979185,1775581843636,-500.0,0.00027397,2]
[419979187,1775581843647,-761.61,0.00027397,2]
[419979189,1775581843657,-500.0,0.00027397,2]
[419979191,1775581843668,-528.9810601,0.00027397,2]
[419979193,1775581843678,-1191.25,0.00027397,2]
[419979195,1775581843688,-500.0,0.00027397,2]
[419979197,1775581843698,-500.0,0.00027397,2]
[419979199,1775581843708,-500.0,0.00027397,2]
[419979201,1775581843718,-500.0,0.00027397,2]
[419979203,1775581843728,-500.0,0.00027397,2]
[419979205,1775581843741,-1132.24,0.00027397,2]
[419979207,1775581843751,-512.70952249,0.00027397,2]
[419979209,1775581843762,-1093.29,0.00027397,2]
[419979211,1775581843772,-1746.08,0.00027397,2]
[419979214,1775581843784,-500.0,0.00027397,2]
[419979216,1775581843796,-1868.47,0.00027397,2]
[419979217,1775581843806,-1723.77,0.00027397,2]
[419979218,1775581843816,-1021.75,0.00027397,2]
[419979219,1775581843827,-500.0,0.00027397,2]
[419979220,1775581843838,-500.0,0.00027397,2]
[419979221,1775581843848,-500.0,0.00027397,2]
[419979222,1775581843858,-500.0,0.00027397,2]
[419979223,1775581843869,-559.02,0.00027397,2]
[419979225,1775581843880,-500.0,0.00027397,2]
[419979227,1775581843890,-537.16,0.00027397,2]
[419979229,1775581843900,-500.0,0.00027397,2]
[419979231,1775581843910,-252.22909426,0.00027397,2]
[419979232,1775581843920,-500.0,0.00027397,2]
[419979233,1775581843930,-500.0,0.00027397,2]
[419979234,1775581843940,-500.0,0.00027397,2]
[419979235,1775581843951,-867.57,0.00027397,2]
[419979236,1775581843961,-500.0,0.00027397,2]
[419979237,1775581843971,-4587.05,0.00027397,2]
[419979238,1775581843982,-500.0,0.00027397,2]
[419979239,1775581843992,-500.0,0.00027397,2]
[419979240,1775581844002,-561.11,0.00027397,2]
[419979241,1775581844012,-500.0,0.00027397,2]
[419979242,1775581844022,-500.0,0.00027397,2]
[419979243,1775581844033,-2350.81,0.00027397,2]
[419979244,1775581844043,-500.0,0.00027397,2]
[419979245,1775581844053,-525.65,0.00027397,2]
[419979246,1775581844063,-500.0,0.00027397,2]
[419979247,1775581844074,-500.0,0.00027397,2]
[419979248,1775581844083,-559.74,0.00027397,2]
[419979249,1775581844093,-500.0,0.00027397,2]
[419979250,1775581844103,-500.0,0.00027397,2]
[419979251,1775581844112,-500.0,0.00027397,2]
[419979252,1775581844123,-500.0,0.00027397,2]
[419979253,1775581844133,-500.0,0.00027397,2]
[419979255,1775581844143,-500.0,0.00027397,2]
[419979257,1775581844153,-1136.8,0.00027397,2]
[419979259,1775581844163,-500.0,0.00027397,2]
[419979261,1775581844173,-500.0,0.00027397,2]
[419979263,1775581844184,-500.0,0.00027397,2]
[419979265,1775581844193,-599.14,0.00027397,2]
[419979267,1775581844203,-500.0,0.00027397,2]
[419979269,1775581844212,-500.0,0.00027397,2]
[419979271,1775581844222,-500.0,0.00027397,2]
[419979273,1775581844231,-500.0,0.00027397,2]
[419979275,1775581844240,-500.0,0.00027397,2]
[419979277,1775581844250,-2036.95,0.00027397,2]
[419979279,1775581844259,-500.0,0.00027397,2]
[419979281,1775581844268,-500.0,0.00027397,2]
[419979283,1775581844277,-500.0,0.00027397,2]
[419979285,1775581844286,-500.0,0.00027397,2]
[419979287,1775581844295,-809.58,0.00027397,2]
[419979289,1775581844305,-745.91,0.00027397,2]
[419979291,1775581844314,-264.91933851,0.00027397,2]
[419979293,1775581844324,-1434.46,0.00027397,2]
[419979295,1775581844334,-500.0,0.00027397,2]
[419979297,1775581844343,-500.0,0.00027397,2]
[419979299,1775581844353,-500.0,0.00027397,2]
[419979300,1775581844363,-1054.61,0.00027397,2]
[419979302,1775581844372,-500.0,0.00027397,2]
[419979304,1775581844382,-500.0,0.00027397,2]
[419979306,1775581844391,-500.0,0.00027397,2]
[419979308,1775581844401,-500.0,0.00027397,2]
[419979310,1775581844411,-523.27988537,0.00027397,2]
[419979313,1775581844420,-604.69,0.00027397,2]
[419979315,1775581844430,-500.0,0.00027397,2]
[419979316,1775581844440,-576.15,0.00027397,2]
[419979318,1775581844450,-500.0,0.00027397,2]
[419979321,1775581844460,-514.03,0.00027397,2]
[419979323,1775581844469,-500.0,0.00027397,2]
[419979325,1775581844479,-500.0,0.00027397,2]
[419979327,1775581844488,-500.0,0.00027397,2]
[419979329,1775581844498,-1270.36,0.00027397,2]
[419979336,1775581844507,-1784.02,0.00027397,2]
[419979338,1775581844571,-500.0,0.00027397,2]
[419979340,1775581844581,-500.0,0.00027397,2]
[419979342,1775581844591,-500.0,0.00027397,2]
[419979344,1775581844600,-500.0,0.00027397,2]
[419979346,1775581844610,-500.0,0.00027397,2]
[419979348,1775581844620,-1588.38,0.00027397,2]
[419979350,1775581844630,-500.0,0.00027397,2]
[419979352,1775581844640,-500.0,0.00027397,2]
[419979354,1775581844650,-500.0,0.00027397,2]
[419979356,1775581844660,-500.0,0.00027397,2]
[419979358,1775581844670,-500.0,0.00027397,2]
[419979361,1775581844680,-500.0,0.00027397,2]
[419979363,1775581844690,-1544.88,0.00027397,2]
[419979365,1775581844701,-500.0,0.00027397,2]
[419979367,1775581844710,-2053.76,0.00027397,2]
[419979369,1775581844720,-500.0,0.00027397,2]
[419979371,1775581844729,-725.65,0.00027397,2]
[419979373,1775581844738,-500.0,0.00027397,2]
[419979375,1775581844748,-500.0,0.00027397,2]
[419979377,1775581844759,-817.11,0.00027397,2]
[419979379,1775581844769,-725.17,0.00027397,2]
[419979381,1775581844779,-500.0,0.00027397,2]
[419979383,1775581844788,-500.0,0.00027397,2]
[419979385,1775581844797,-500.0,0.00027397,2]
[419979387,1775581844806,-632.05,0.00027397,2]
[419979388,1775581844815,-514.29,0.00027397,2]
[419979390,1775581844824,-1210.27,0.00027397,2]
[419979392,1775581844833,-500.0,0.00027397,2]
[419979394,1775581844842,-500.0,0.00027397,2]
[419979396,1775581844851,-713.88,0.00027397,2]
[419979398,1775581844861,-2355.57,0.00027397,2]
[419979400,1775581844870,-500.0,0.00027397,2]
[419979402,1775581844880,-500.0,0.00027397,2]
[419979404,1775581844889,-500.0,0.00027397,2]
[419979406,1775581844898,-1840.18,0.00027397,2]
[419979408,1775581844907,-500.0,0.00027397,2]
[419979410,1775581844918,-500.0,0.00027397,2]
[419979412,1775581844927,-617.4,0.00027397,2]
[419979414,1775581844937,-1153.41,0.00027397,2]
[419979416,1775581844947,-1593.27,0.00027397,2]
[419979418,1775581844956,-500.0,0.00027397,2]
[419979420,1775581844965,-500.0,0.00027397,2]
[419979422,1775581844975,-500.0,0.00027397,2]
[419979424,1775581844985,-500.0,0.00027397,2]
[419979426,1775581844995,-500.0,0.00027397,2]
[419979428,1775581845005,-1213.22,0.00027397,2]
[419979430,1775581845015,-500.0,0.00027397,2]
[419979432,1775581845024,-500.0,0.00027397,2]
[419979434,1775581845034,-289.31124401,0.00027397,2]
[419979436,1775581845043,-500.0,0.00027397,2]
[419979438,1775581845053,-500.0,0.00027397,2]
[419979439,1775581845062,-1693.39,0.00027397,2]
[419979441,1775581845072,-500.0,0.00027397,2]
[419979443,1775581845081,-500.0,0.00027397,2]
[419979445,1775581845091,-500.0,0.00027397,2]
[419979447,1775581845101,-2026.88,0.00027397,2]
[419979449,1775581845111,-500.0,0.00027397,2]
[419979451,1775581845121,-500.0,0.00027397,2]
[419979453,1775581845130,-3683.2,0.00027397,2]
[419979456,1775581845140,-500.0,0.00027397,2]
[419979458,1775581845150,-568.42421687,0.00027397,2]
[419979460,1775581845160,-424.34373574,0.00027397,2]
[419979462,1775581845170,-1937.41,0.00027397,2]
[419979464,1775581845179,-667.15,0.00027397,2]
[419979466,1775581845189,-3985.46,0.00027397,2]
[419979468,1775581845199,-500.0,0.00027397,2]
[419979470,1775581845208,-716.92,0.00027397,2]
[419979472,1775581845218,-1752.75,0.00027397,2]
[419979474,1775581845227,-500.0,0.00027397,2]
[419979476,1775581845237,-1135.97,0.00027397,2]
[419979478,1775581845246,-1652.7,0.00027397,2]
[419979479,1775581845255,-151.16886112,0.00027397,2]
[419979481,1775581845264,-560.35083038,0.00027397,2]
[419979483,1775581845274,-500.0,0.00027397,2]
[419979485,1775581845285,-569.66,0.00027397,2]
[419979487,1775581845294,-500.0,0.00027397,2]
[419979489,1775581845303,-500.0,0.00027397,2]
[419979491,1775581845313,-500.0,0.00027397,2]
[419979493,1775581845322,-3478.06,0.00027397,2]
[419979495,1775581845331,-500.0,0.00027397,2]